fUSD/lending_fUSD_20250804
["ID","MTS","AMOUNT","RATE_DAILY","PERIOD"]
[377187294,1754273444114,-624.0,0.0004,60]
[377187295,1754273444123,-1000.0,0.0004,60]
[377187296,1754273444133,-150.99,0.0004029,2]
[377187297,1754273444144,-318.95,0.00040542,2]
[377187298,1754273444154,-391.0,0.0004114,30]
[377187299,1754273444165,-458.081,0.00041578,61]
[377187300,1754273444174,-500.0,0.00041829,30]
[377187301,1754273444184,-500.0,0.00042068,30]
[377187302,1754273444193,-500.0,0.00042082,2]
[377187303,1754273444203,-318.95,0.00042272,120]
[377187304,1754273444212,-1550.93,0.00042354,2]
[377187305,1754273444222,-166.7,0.00042714,2]
[377187306,1754273444231,-1000.0,0.00042737,2]
[377187307,1754273444240,-519.0,0.00042749,10]
[377187308,1754273444250,-1000.0,0.00042797,30]
[377187309,1754273444259,-250.52,0.0004283,120]
[377187310,1754273444269,-177.98,0.00042863,30]
[377187311,1754273444278,-4382.6304647,0.00043362,120]
[377187312,1754273444288,-666.0,0.00043825,3]
[377187313,1754273444297,-150.0,0.00044,57]
[377187314,1754273444309,-318.95,0.00044003,120]
[377187315,1754273444318,-519.0,0.00044474,10]
[377187316,1754273444327,-515.74069414,0.00044792,30]
[377187317,1754273444338,-500.0,0.00045,120]
[377187318,1754273444348,-548.0,0.00045254,60]
[377187319,1754273444357,-318.95,0.00045733,120]
[377187320,1754273444367,-250.0,0.00046052,2]
[377187321,1754273444376,-177.98,0.0004616,120]
[377187322,1754273444385,-519.0,0.00046199,13]
[377187323,1754273444395,-500.0,0.0004629,30]
[377187324,1754273444404,-200.0,0.00046392,2]
[377187325,1754273444413,-3710.81387712,0.00046398,2]
[377187326,1754273444425,-20189.18612288,0.00046398,2]
[377187327,1754273444434,-189.39,0.00046416,2]
[377187328,1754273444443,-5000.0,0.00046461,120]
[377187329,1754273444531,-500.0,0.00046487,30]
[377187330,1754273444541,-151.0,0.000467,120]
[377187331,1754273444550,-500.0,0.00047096,2]
[377187332,1754273444560,-500.0,0.00047305,30]
[377187333,1754273444569,-318.95,0.00047464,120]
[377187334,1754273444578,-8752.67,0.000475,120]
[377187335,1754273444587,-156.23954496,0.000475,120]
[377187336,1754273444596,-154.4326489,0.00047544,2]
[377187337,1754273444606,-4388.61539,0.00047544,38]
[377187338,1754273444616,-150.0,0.00047584,7]
[377187339,1754273444625,-915.49494013,0.00047585,30]
[377187340,1754273444634,-519.0,0.00047924,19]
[377187341,1754273444644,-500.0,0.00048,120]
[377187342,1754273444654,-2004.96,0.00048,120]
[377187343,1754273444665,-150.0,0.00048025,7]
[377187344,1754273444676,-1000.0,0.00048079,2]
[377187345,1754273444685,-500.0,0.00048161,30]
[377187346,1754273444694,-250.52,0.00048184,120]
[377187347,1754273444703,-4318.94535,0.000482,120]
[377187348,1754273444712,-1000.0,0.00048269,14]
[377187349,1754273444721,-1196.54219871,0.00048354,30]
[377187350,1754273444730,-150.0,0.00048362,7]
[377187351,1754273444739,-150.0,0.00048396,7]
[377187352,1754273444748,-150.0,0.00048471,7]
[377187353,1754273444758,-155.01562755,0.00048479,120]
[377187354,1754273444766,-260148.24454423,0.00048488,31]
[377187355,1754273444778,-360395.58710971,0.00048488,31]
[377187356,1754273444838,-673.135,0.00048488,31]
[377187368,1754273446811,-1435.83,0.00048488,31]
[377187369,1754273446924,-952.17,0.00048488,31]
[377187374,1754273685120,583.72,0.00020702,2]
[377187375,1754273774102,157.83,0.00013699,2]
[377187387,1754274332136,173.84801657,0.0002,120]
[377187390,1754274432292,299.15802066,0.0002301,120]
[377187391,1754274477756,2147.65955326,0.00022,4]
[377187392,1754274478017,1888.0,0.000225,3]
[377187393,1754274478051,3776.0,0.0002474,3]
[377187394,1754274479850,34803.30544336,0.00019,2]
[377187396,1754274518759,152.11069185,0.00025,7]
[377187399,1754274526771,1014.19012451,0.000194,2]
[377187409,1754274631720,-1888.0,0.000255,3]
[377187410,1754274631730,-285.2231,0.000255,2]
[377187411,1754274631739,-2500.0,0.00026849,7]
[377187412,1754274631748,-3776.0,0.0002774,3]
[377187413,1754274631757,-157.83,0.0002911,2]
[377187414,1754274631767,-300.0,0.0002972,2]
[377187415,1754274631776,-200.0,0.0002972,2]
[377187416,1754274631785,-1364.44575984,0.000299,21]
[377187417,1754274631794,-1364.44575977,0.0003059,23]
[377187418,1754274631803,-1364.44575977,0.00031279,24]
[377187419,1754274631813,-1364.44575977,0.00031969,26]
[377187420,1754274631826,-1364.44575977,0.00032659,27]
[377187421,1754274631835,-1364.44575977,0.00033348,28]
[377187422,1754274631844,-200.0,0.00034,30]
[377187423,1754274631853,-211.27234131,0.00034038,30]
[377187424,1754274631902,-1153.17341846,0.00034038,30]
[377187425,1754274631911,-1364.44575977,0.00034728,31]
[377187426,1754274631920,-1364.44575977,0.00035417,32]
[377187427,1754274631929,-153.43,0.00035544,2]
[377187428,1754274631938,-155.01562755,0.00035993,2]
[377187429,1754274631947,-243.85767621,0.00036073,5]
[377187430,1754274631957,-230.19364531,0.00036073,5]
[377187431,1754274631966,-500.60126646,0.00036073,5]
[377187432,1754274631975,-500.27256849,0.00036073,5]
[377187433,1754274631984,-500.0,0.00036073,5]
[377187434,1754274631993,-155.277,0.00036093,2]
[377187436,1754274632003,-654.80830161,0.00036093,90]
[377187439,1754274632013,-385.85631509,0.00036093,120]
[377187440,1754274632022,-193.23225725,0.00036093,91]
[377187442,1754274632031,-153.04792733,0.00036093,8]
[377187444,1754274632041,-243.55407406,0.00036093,30]
[377187447,1754274632049,-224.96711247,0.00036093,7]
[377187450,1754274632058,-538.28683718,0.00036093,7]
[377187453,1754274632067,-331.00116308,0.00036093,120]
[377187456,1754274632076,-1502.29140324,0.00036093,120]
[377187459,1754274632085,-400.56848814,0.00036093,120]
[377187462,1754274632094,-1047.45232616,0.00036093,7]
[377187465,1754274632103,-150.99999935,0.00036093,2]
[377187468,1754274632112,-469.7387943,0.00036093,7]
[377187470,1754274632121,-39451.16235636,0.00036093,2]
[377187472,1754274632133,-1649.32995828,0.00036093,2]
[377187474,1754274632143,-12278.99331991,0.00036093,2]
[377187479,1754274632174,-499.85875697,0.00026,3]
[377187503,1754274637481,-588.0,0.00026,3]
[377187504,1754274637712,-800.14124303,0.00026,3]
[377187505,1754274637722,-1888.0,0.000265,3]
[377187506,1754274637731,-3776.0,0.0002824,3]
[377187507,1754274637740,-3172.54751576,0.00036093,2]
[377187508,1754274637751,-901.6449578,0.00036093,2]
[377187509,1754274637766,-753.05461706,0.00036093,2]
[377187510,1754274637774,-305.72875698,0.00036093,120]
[377187511,1754274637783,-438.15974695,0.00036093,2]
[377187685,1754274639661,-2128.20402206,0.0002874,3]
[377187687,1754274639677,-356.12938045,0.0002874,3]
[377188262,1754274645329,-1291.66659749,0.0002874,3]
[377188264,1754274645339,-1888.0,0.0002924,3]
[377188266,1754274645348,-3776.0,0.0003148,3]
[377188268,1754274645358,-20995.76413448,0.00036093,2]
[377188270,1754274645367,-7261.74725303,0.00036093,120]
[377188272,1754274645376,-5562.56062212,0.00036093,2]
[377188273,1754274645385,-151.11707303,0.00036093,120]
[377188275,1754274645398,-27154.25689129,0.00036093,2]
[377188278,1754274645413,-7904.42834085,0.00036093,2]
[377188280,1754274645425,-7798.45939316,0.00036093,2]
[377188282,1754274645435,-380.08281392,0.00036093,120]
[377188284,1754274645444,-1210.19316634,0.00036093,7]
[377188286,1754274645455,-1377.81892697,0.00036093,120]
[377188288,1754274645464,-14897.76864533,0.00036093,2]
[377188290,1754274645473,-23204.80780502,0.00036093,2]
[377188292,1754274645482,-500.0,0.00036093,7]
[377188294,1754274645491,-1713.3999917,0.00036093,120]
[377188296,1754274645500,-717.38957091,0.00036093,120]
[377188298,1754274645510,-220.03881026,0.00036093,7]
[377188300,1754274645519,-656.61079089,0.00036093,2]
[377189343,1754274703408,307.8730077,0.0003013,120]
[377189344,1754274707235,275.54675264,0.0003013,120]
[377189345,1754274738026,157.37,0.00013699,2]
[377189347,1754274754131,5000.0,0.00030137,120]
[377189360,1754275737809,157.19,0.00013699,2]
[377189384,1754275831883,-300.0,0.00029048,2]
[377189386,1754275831894,-590.3510804,0.00029049,2]
[377189388,1754275831939,-9738.79768379,0.00029049,2]
[377189389,1754275831951,-2723.85752813,0.00029049,2]
[377189390,1754275831961,-157.19,0.0002911,2]
[377189391,1754275831971,-366.465,0.00029596,23]
[377189392,1754275831980,-1035.23484297,0.000299,21]
[377189393,1754275831990,-1213.0,0.00030028,7]
[377189394,1754275832000,-1213.0,0.00030028,7]
[377189395,1754275832013,-1213.0,0.00030028,7]
[377189396,1754275832022,-1213.0,0.00030028,7]
[377189397,1754275832032,-1213.0,0.00030028,7]
[377189398,1754275832043,-1035.23484277,0.0003059,23]
[377189399,1754275832052,-1035.23484277,0.00031279,24]
[377189400,1754275832062,-420.0,0.00031338,2]
[377189401,1754275832071,-1035.23484277,0.00031969,26]
[377189402,1754275832081,-1213.0,0.00032049,7]
[377189403,1754275832091,-1213.0,0.00032049,7]
[377189404,1754275832101,-1213.0,0.00032049,7]
[377189405,1754275832111,-1213.0,0.00032049,7]
[377189406,1754275832120,-1035.23484277,0.00032659,27]
[377189407,1754275832130,-379.38,0.00032875,2]
[377189408,1754275832139,-1035.23484277,0.00033348,28]
[377189409,1754275832150,-587.0,0.00033808,2]
[377189410,1754275832160,-1035.23484277,0.00034038,30]
[377189411,1754275832169,-198.7,0.000341,2]
[377189412,1754275832179,-379.38,0.00034606,2]
[377189413,1754275832188,-1005.77553331,0.00034649,120]
[377189414,1754275832198,-1035.23484277,0.00034728,31]
[377189415,1754275832208,-726.6158505,0.00035294,2]
[377189416,1754275832218,-726.6158505,0.00035352,2]
[377189417,1754275832228,-1035.23484277,0.00035417,32]
[377189418,1754275832238,-726.61585051,0.00035667,2]
[377189419,1754275832248,-534.72745168,0.0003574,2]
[377189420,1754275832259,-600.0,0.00035874,2]
[377189421,1754275832269,-351.71034865,0.00036057,2]
[377189422,1754275832278,-151.0,0.00036072,2]
[377189423,1754275832288,-151.0,0.00036072,2]
[377189424,1754275832298,-151.0,0.00036072,2]
[377189425,1754275832307,-151.0,0.00036072,2]
[377189426,1754275832317,-151.0,0.00036072,2]
[377189427,1754275832327,-151.0,0.00036072,2]
[377189428,1754275832336,-151.0,0.00036072,2]
[377189429,1754275832346,-151.0,0.00036072,2]
[377189431,1754275832355,-151.0,0.00036072,2]
[377189433,1754275832364,-151.0,0.00036072,2]
[377189435,1754275832373,-151.0,0.00036072,2]
[377189437,1754275832384,-151.0,0.00036072,2]
[377189439,1754275832393,-151.0,0.00036072,2]
[377189441,1754275832403,-151.0,0.00036072,2]
[377189443,1754275832413,-151.0,0.00036072,2]
[377189445,1754275832422,-151.0,0.00036072,2]
[377189447,1754275832432,-151.0,0.00036072,2]
[377189449,1754275832441,-151.0,0.00036072,2]
[377189451,1754275832451,-151.0,0.00036072,2]
[377189453,1754275832462,-151.0,0.00036072,2]
[377189455,1754275832471,-647.83634953,0.00036073,5]
[377189457,1754275832481,-500.0,0.00036073,5]
[377189459,1754275832490,-502.98137899,0.00036073,5]
[377189461,1754275832500,-500.4582055,0.00036073,5]
[377189463,1754275832511,-509.68044894,0.00036073,5]
[377189465,1754275832520,-500.0,0.00036073,5]
[377189467,1754275832530,-10288.85980796,0.00036093,2]
[377189468,1754275832580,-4402.40300597,0.00036093,2]
[377189469,1754275832590,-268.43766367,0.00036093,120]
[377189470,1754275832601,-235.48306447,0.00036093,7]
[377189471,1754275832612,-308.33183476,0.00036093,7]
[377189472,1754275832623,-7038.78088728,0.00036093,2]
[377189473,1754275832633,-20415.09778196,0.00036093,2]
[377189474,1754275832644,-1002.1037185,0.00036093,7]
[377189475,1754275832655,-10993.03832574,0.00036093,2]
[377189476,1754275832666,-502.40042475,0.00036093,2]
[377189477,1754275832675,-5731.13838913,0.00036093,2]
[377189478,1754275832684,-1023.36883474,0.00036093,7]
[377189479,1754275832694,-10279.12334197,0.00036093,2]
[377189480,1754275832704,-159.57294728,0.00036093,30]
[377189481,1754275832713,-156.87953084,0.00036093,30]
[377189482,1754275832723,-12714.26950855,0.00036093,2]
[377189483,1754275832733,-226.23247654,0.00036093,30]
[377189484,1754275832742,-278.58554924,0.00036093,30]
[377189485,1754275832752,-801.11484814,0.00036093,120]
[377189486,1754275832762,-3657.17949,0.00036093,2]
[377189487,1754275832771,-500.0,0.000361,5]
[377189488,1754275832781,-418.46796973,0.000361,5]
[377189489,1754275832793,-1035.23484277,0.00036107,34]
[377189490,1754275832803,-379.38,0.00036336,2]
[377189491,1754275832812,-508.38359324,0.00036621,5]
[377189492,1754275832822,-1000.0,0.00036621,5]
[377189493,1754275832831,-1003.75202155,0.00036648,5]
[377189494,1754275832841,-1035.23484277,0.00036797,35]
[377189495,1754275832850,-721.78,0.00036857,36]
[377189496,1754275832860,-1500.0,0.00037168,5]
[377189497,1754275832869,-250.0,0.00037257,2]
[377189498,1754275832879,-395.83,0.00037305,2]
[377189499,1754275832888,-200.0,0.00037305,2]
[377189500,1754275832899,-1000.0,0.00037364,2]
[377189501,1754275832909,-280.0,0.000374,30]
[377189502,1754275832920,-1035.23484277,0.00037486,36]
[377189503,1754275832931,-219.00104871,0.00037616,2]
[377189504,1754275832941,-23900.0,0.00037692,2]
[377189505,1754275832951,-462.31802547,0.00037716,5]
[377189506,1754275832962,-300.0,0.00037876,2]
[377189507,1754275832972,-200.0,0.00037952,2]
[377189508,1754275832981,-379.38,0.00038066,2]
[377189509,1754275832991,-500.0,0.00038076,7]
[377189510,1754275833000,-3657.17949,0.00038093,2]
[377189511,1754275833010,-1035.23484277,0.00038176,38]
[377189512,1754275833020,-182.47,0.00038319,2]
[377189513,1754275833030,-150.31,0.00038355,120]
[377189514,1754275833040,-1035.23484277,0.00038866,39]
[377189515,1754275833049,-153.0,0.00039,120]
[377189516,1754275833059,-1035.23484277,0.00039555,40]
[377189517,1754275833069,-379.38,0.00039797,2]
[377189518,1754275833079,-641.52,0.0003999,3]
[377189519,1754275833088,-220.5,0.0004,120]
[377189520,1754275833098,-753.6182,0.0004,120]
[377189521,1754275833108,-4390.9249517,0.0004,30]
[377189522,1754275833118,-7237.55524916,0.0004,30]
[377189523,1754275833127,-511.29841692,0.0004,30]
[377189524,1754275833137,-2538.74658516,0.00040093,2]
[377189525,1754275833922,-328.35809412,0.00029548,3]
[377189529,1754275837588,-750.78902854,0.00029548,3]
[377189535,1754275837815,-671.13230449,0.00029548,3]
[377189536,1754275839873,-137.72057285,0.00029548,3]
[377189537,1754275839884,-160.37942715,0.00040093,2]
[377189538,1754275839993,-958.05347769,0.00040093,2]
[377189539,1754275840002,-153.0,0.000402,120]
[377189540,1754275840011,-222.01,0.0004059,2]
[377189541,1754275840021,-500.0,0.00040775,30]
[377189542,1754275840030,-666.0,0.00040792,3]
[377189543,1754275840039,-516.0,0.00040819,10]
[377189544,1754275840049,-317.81427271,0.00041,120]
[377189545,1754275840059,-634.0519925,0.00041,120]
[377189546,1754275840068,-370.22,0.00041041,2]
[377189547,1754275840077,-1508.21,0.00041052,2]
[377189548,1754275840086,-391.0,0.0004114,30]
[377189549,1754275840095,-156.38,0.00041368,2]
[377189550,1754275840105,-153.0,0.000414,120]
[377189551,1754275840114,-153.43,0.00041406,30]
[377189552,1754275840123,-379.38,0.00041527,120]
[377189553,1754275840132,-926.99425828,0.00041968,30]
[377189554,1754275840141,-173.07120201,0.00042,120]
[377189555,1754275840153,-8873.98734482,0.00042,120]
[377189556,1754275840163,-347.679204,0.00042,30]
[377189557,1754275840172,-1000.0,0.00042034,2]
[377189558,1754275840180,-3657.17949,0.00042093,2]
[377189559,1754275840190,-500.0,0.00042226,30]
[377189560,1754275840199,-485.54,0.00042352,30]
[377189561,1754275840209,-818.41,0.00042352,30]
[377189562,1754275840218,-818.41,0.00042352,30]
[377189563,1754275840230,-466.93,0.00042352,30]
[377189564,1754275840240,-466.93,0.00042352,30]
[377189565,1754275840249,-818.41,0.00042352,30]
[377189566,1754275840258,-466.93,0.00042352,30]
[377189567,1754275840269,-818.41,0.00042352,30]
[377189568,1754275840278,-818.41,0.00042352,30]
[377189569,1754275840287,-1641.18,0.00042352,30]
[377189570,1754275840297,-336.17,0.00042489,30]
[377189571,1754275840307,-202.501615,0.00042632,120]
[377189572,1754275840317,-153.0,0.000427,120]
[377189573,1754275840326,-151.0,0.00042707,14]
[377189574,1754275840335,-151.755399,0.00042707,14]
[377189575,1754275840345,-151.0,0.00042707,14]
[377189576,1754275840355,-151.646029,0.00042707,14]
[377189577,1754275840364,-151.0,0.00042707,14]
[377189578,1754275840373,-151.0,0.00042707,14]
[377189579,1754275840383,-151.0,0.00042707,14]
[377189580,1754275840392,-151.0,0.00042707,14]
[377189581,1754275840401,-34750.52210551,0.00042707,2]
[377189582,1754275840472,-1103.73059459,0.00029547,3]
[377189583,1754275840481,-197.71269541,0.00042707,2]
[377189587,1754275844654,-0.16782704,0.00030028,7]
[377189588,1754275844738,-1212.83217296,0.00030028,7]
[377189589,1754275844747,-2307.92959406,0.00042707,2]
[377189593,1754275844805,-404.3835385,0.00042707,2]
[377189594,1754275845652,-1103.73059459,0.00030528,3]
[377189595,1754275845662,-133.58263957,0.00032768,3]
[377189597,1754275846006,-288.05571284,0.00032768,3]
[377189598,1754275846034,-1785.82283677,0.00032768,3]
[377189599,1754275846044,-3884.62019114,0.00042707,2]
[377189600,1754275846134,-408.30563646,0.00042707,2]
[377189618,1754276652259,157.19,0.00013699,2]
[377189619,1754276663147,4692.55418702,0.0002,2]
[377189620,1754276663173,307.44612198,0.0002,2]
[377189624,1754276882866,49692.55387802,0.0002,2]
[377189625,1754276882892,307.44612198,0.0002,2]
[377189629,1754277032116,-151.52,0.00031973,2]
[377189630,1754277032126,-150.4147719,0.00034147,2]
[377189631,1754277032136,-157.19,0.00034247,2]
[377189632,1754277032146,-151.52,0.0003517,2]
[377189633,1754277032156,-500.0,0.00035234,7]
[377189634,1754277032166,-370.74,0.00036123,2]
[377189635,1754277032175,-514.0,0.00036556,2]
[377189636,1754277032185,-392.6152281,0.00036556,2]
[377189637,1754277032314,-122.3847719,0.00036556,2]
[377189638,1754277032323,-196.02199678,0.00036578,2]
[377189639,1754277032333,-196.02199678,0.00036578,2]
[377189640,1754277032343,-842.0,0.00036644,2]
[377189641,1754277032352,-245.0,0.00036729,2]
[377189642,1754277032361,-500.0,0.00036952,7]
[377189643,1754277032371,-500.0,0.00036979,7]
[377189645,1754277032381,-1000.0,0.00037,30]
[377189646,1754277032390,-1000.0,0.00037,30]
[377189647,1754277032400,-1000.0,0.00037,30]
[377189648,1754277032410,-1000.0,0.00037,30]
[377189649,1754277032419,-1000.0,0.00037,30]
[377189650,1754277032429,-297.0,0.000372,3]
[377189651,1754277032443,-560.6,0.0003734,2]
[377189652,1754277032452,-602.81373561,0.00037341,2]
[377189653,1754277032462,-500.0,0.00037559,7]
[377189654,1754277032471,-1238.0,0.00037851,3]
[377189655,1754277032481,-370.74,0.00037853,2]
[377189656,1754277032490,-558.5874299,0.000379,37]
[377189658,1754277032505,-514.0,0.00037935,5]
[377189659,1754277032514,-400.0,0.00037975,3]
[377189660,1754277032523,-300.0,0.00037975,3]
[377189661,1754277032532,-200.0,0.00037975,30]
[377189662,1754277032543,-521.0,0.00037976,3]
[377189663,1754277032552,-557.0,0.00037977,2]
[377189664,1754277032561,-979.28830802,0.00038101,7]
[377189665,1754277032571,-5510.0,0.000382,5]
[377189666,1754277032581,-558.58742968,0.00038314,38]
[377189667,1754277032590,-151.52,0.00038367,2]
[377189668,1754277032600,-558.58742968,0.00038728,39]
[377189669,1754277032609,-558.58742968,0.00039141,40]
[377189670,1754277032618,-514.0,0.00039314,8]
[377189671,1754277032628,-293.172,0.00039555,55]
[377189672,1754277032637,-558.58742968,0.00039555,40]
[377189673,1754277032647,-370.74,0.00039584,2]
[377189674,1754277032657,-558.58742968,0.00039969,41]
[377189675,1754277032668,-297.05,0.0004,120]
[377189676,1754277032678,-280.0,0.0004,120]
[377189677,1754277032688,-1000.0,0.0004,10]
[377189678,1754277032700,-603.92,0.0004,120]
[377189679,1754277032710,-865.93922018,0.0004003,2]
[377189680,1754277032719,-500.0,0.00040074,30]
[377189681,1754277032729,-830.7,0.00040279,2]
[377189682,1754277032738,-865.93922018,0.00040341,2]
[377189683,1754277032748,-558.58742968,0.00040383,42]
[377189684,1754277032758,-168.28,0.00040396,120]
[377189685,1754277032769,-19495.08666709,0.0004056,2]
[377189686,1754277032781,-626.50924428,0.0004056,2]
[377189687,1754277032793,-674.90215906,0.0004056,2]
[377189688,1754277032805,-1915.49389417,0.0004056,2]
[377189689,1754277032817,-1188.0080354,0.0004056,2]
[377189690,1754277032826,-73.80368371,0.00040641,2]
[377189691,1754277032838,-306.68,0.00040641,2]
[377189716,1754277038246,-300.55768777,0.00032473,3]
[377189757,1754277040017,-1587.44231223,0.00032473,3]
[377189758,1754277040027,-1888.0,0.00032973,3]
[377189759,1754277040036,-3776.0,0.00034713,3]
[377189760,1754277040046,-150.41477189,0.00034868,2]
[377189761,1754277040058,-3776.0,0.00035213,3]
[377189762,1754277040067,-150.41477189,0.00035589,2]
[377189763,1754277040076,-197.15117888,0.00036456,2]
[377189764,1754277040086,-485.45553647,0.00040641,2]
[377189765,1754277040095,-159.47,0.00040674,2]
[377189766,1754277040106,-514.0,0.00040693,12]
[377189767,1754277040115,-558.58742968,0.00040797,43]
[377189768,1754277040124,-1000.0,0.00040803,2]
[377189769,1754277040134,-186.94,0.00040836,2]
[377189770,1754277040143,-6.89599898,0.00041,7]
[377189771,1754277040202,-1788.67138074,0.00041,7]
[377189778,1754277045895,-894.70855401,0.00032472,3]
[377189790,1754277698067,152.43,0.00013699,2]
[377189791,1754277699487,433.71704373,0.0003013,120]
[377189793,1754277727560,175.0,0.00025,120]
[377189797,1754277910026,49540.12387802,0.00019,2]
[377189798,1754277910054,12387.4646828,0.00019,2]
[377189804,1754278123349,500.0,0.00022,2]
[377189812,1754278232203,-1241.5610626,0.000225,3]
[377189813,1754278232214,-920.63877297,0.000239,2]
[377189814,1754278232225,-220.32018737,0.000239,2]
[377189815,1754278232235,-822.47997704,0.00024,5]
[377189816,1754278232248,-4177.52175242,0.00024,5]
[377189817,1754278232258,-250.0,0.00024,2]
[377189818,1754278232268,-300.0,0.0002475,2]
[377189819,1754278232278,-409.63078192,0.000249,12]
[377189820,1754278232288,-300.0,0.00024999,2]
[377189821,1754278232298,-1200.0,0.00024999,2]
[377189822,1754278232309,-202.43052867,0.00025,2]
[377189823,1754278232319,-1740.84135876,0.00025,2]
[377189824,1754278232329,-193.75851851,0.00025,2]
[377189825,1754278232338,-2968.98605164,0.00025,2]
[377189826,1754278232348,-1038.20220153,0.00025,2]
[377189827,1754278232358,-163.16178449,0.00025,2]
[377189828,1754278232368,-160.4,0.00025,2]
[377189829,1754278232378,-3295.81511047,0.000251,2]
[377189831,1754278232388,-1339.30815232,0.00026849,7]
[377189833,1754278232398,-1680.0,0.00027205,2]
[377189835,1754278232408,-268.74527277,0.00027855,2]
[377189836,1754278232418,-179.16351518,0.00027855,2]
[377189837,1754278232428,-10980.60712986,0.00027993,2]
[377189838,1754278232438,-2188.0,0.00029605,2]
[377189840,1754278232448,-252.18109,0.0002973,2]
[377189842,1754278232458,-220.32018737,0.0002985,2]
[377189844,1754278232467,-600.0,0.0003175,2]
[377189846,1754278232478,-600.0,0.0003175,2]
[377189848,1754278232488,-600.0,0.0003175,2]
[377189850,1754278232498,-425.37901399,0.00032472,3]
[377189999,1754278237988,-674.44317359,0.00030137,120]
[377190000,1754278238113,-162.23682641,0.00030137,120]
[377190001,1754278238123,-567.912432,0.00032472,3]
[377190002,1754278238133,-1997.99110601,0.00032822,2]
[377190003,1754278238142,-167.38,0.00034,2]
[377190004,1754278238152,-1323.11967594,0.00034228,2]
[377190005,1754278238161,-152.43,0.00034247,2]
[377190006,1754278238175,-283.15,0.00034729,2]
[377190007,1754278238184,-169.2015219,0.0003475,5]
[377190008,1754278238194,-531.28,0.00034978,2]
[377190009,1754278238203,-1735.66052109,0.00035,2]
[377190010,1754278238243,-4606.27832297,0.00035,2]
[377190011,1754278238253,-571.42437627,0.00035067,7]
[377190012,1754278238263,-500.0,0.00035088,5]
[377190013,1754278238273,-504.96551035,0.00035088,5]
[377190014,1754278238287,-1959.03666142,0.00035123,2]
[377190015,1754278238297,-500.0,0.00035132,7]
[377190016,1754278238307,-153.71,0.00035185,2]
[377190017,1754278238317,-500.0,0.00035606,7]
[377190018,1754278238326,-1008.0980087,0.00035635,5]
[377190019,1754278238336,-7119.57179585,0.00035784,2]
[377190020,1754278238347,-220.32018737,0.000358,2]
[377190022,1754278238358,-1000.0,0.000359,30]
[377190024,1754278238370,-157.37918434,0.00035976,2]
[377190025,1754278238379,-161.76448602,0.00035976,2]
[377190027,1754278238389,-536.09056279,0.00035977,5]
[377190029,1754278238399,-162.38013966,0.00036028,7]
[377190030,1754278238408,-500.0,0.00036073,5]
[377190031,1754278238417,-500.92915465,0.00036073,5]
[377190032,1754278238427,-671573.62743979,0.00036076,2]
[377190034,1754278238437,-37934.01362599,0.00036076,2]
[377190036,1754278238446,-151.0,0.00036076,7]
[377190037,1754278238455,-151.0,0.00036076,7]
[377190039,1754278238465,-10016.70693359,0.00036076,120]
[377190041,1754278238474,-23774.64989746,0.00036076,120]
[377190042,1754278238484,-20995.76413448,0.00036076,2]
[377190044,1754278238494,-14505.89914926,0.00036076,120]
[377190045,1754278238503,-5562.56062212,0.00036076,2]
[377190047,1754278238512,-151.11707303,0.00036076,120]
[377190048,1754278238522,-27154.25689129,0.00036076,2]
[377190049,1754278238531,-7904.42834085,0.00036076,2]
[377190050,1754278238540,-6755.15319397,0.00036076,2]
[377190051,1754278238549,-502.15,0.000364,7]
[377190052,1754278238559,-283.15,0.00036466,2]
[377190053,1754278238569,-152.97,0.00036554,2]
[377190054,1754278238578,-188.49,0.00036588,2]